[Event "Early-Titled-Tuesday-Blitz-May-07-2024"]
[Site "Chess.com"]
[Date "2024.05.07"]
[Round "2"]
[White "tandaleo"]
[Black "bancsoo"]
[Result "0-1"]
[WhiteElo "2595"]
[BlackElo "2881"]
[TimeControl "180+1"]
[EndTime "8:19:14 PDT"]
[Termination "bancsoo won on time"]

1. d4 {[%clk 0:03:00.9]} 1... d5 {[%clk 0:02:59.4]} 2. c4 {[%clk 0:02:58.2]}
2... c6 {[%clk 0:02:59.8]} 3. Nc3 {[%clk 0:02:57.9]} 3... Nf6 {[%clk 0:03:00]}
4. Nf3 {[%clk 0:02:56.4]} 4... e6 {[%clk 0:02:58.9]} 5. g3 {[%clk 0:02:53.9]}
5... Be7 {[%clk 0:02:55.5]} 6. Bg2 {[%clk 0:02:53.8]} 6... O-O {[%clk
0:02:56.1]} 7. O-O {[%clk 0:02:52.2]} 7... a5 {[%clk 0:02:55.3]} 8. Qc2 {[%clk
0:02:40.6]} 8... dxc4 {[%clk 0:02:50.9]} 9. e4 {[%clk 0:02:41]} 9... b5 {[%clk
0:02:46.3]} 10. e5 {[%clk 0:02:38.4]} 10... Nd5 {[%clk 0:02:45.1]} 11. a3 {[%clk
0:02:37.5]} 11... Nd7 {[%clk 0:02:34.6]} 12. Ne4 {[%clk 0:02:35.1]} 12... h6
{[%clk 0:02:33.7]} 13. h4 {[%clk 0:02:25.3]} 13... c5 {[%clk 0:02:28.8]} 14. a4
{[%clk 0:02:01.5]} 14... Ba6 {[%clk 0:01:49.3]} 15. axb5 {[%clk 0:01:42.8]}
15... Bxb5 {[%clk 0:01:48.3]} 16. Rd1 {[%clk 0:01:38.4]} 16... Qb6 {[%clk
0:01:45.3]} 17. Nc3 {[%clk 0:00:59.8]} 17... Bc6 {[%clk 0:01:33.1]} 18. Nxd5
{[%clk 0:00:39.2]} 18... Bxd5 {[%clk 0:01:32]} 19. Be3 {[%clk 0:00:39.9]} 19...
Rfc8 {[%clk 0:01:18.1]} 20. dxc5 {[%clk 0:00:20.8]} 20... Bxc5 {[%clk 0:01:17]}
21. Bxc5 {[%clk 0:00:21.1]} 21... Nxc5 {[%clk 0:01:15.9]} 22. Nd2 {[%clk
0:00:06.3]} 22... Qb7 {[%clk 0:00:53.3]} 23. Bxd5 {[%clk 0:00:02.2]} 23... exd5
{[%clk 0:00:53.5]} 24. Nf3 {[%clk 0:00:02.1]} 24... Nd3 {[%clk 0:00:48.8]} 25.
b3 {[%clk 0:00:02.6]} 25... Qxb3 {[%clk 0:00:34.8]} 0-1

[Event "Early-Titled-Tuesday-Blitz-May-07-2024"]
[Site "Chess.com"]
[Date "2024.05.07"]
[Round "2"]
[White "MVM2008"]
[Black "Abund"]
[Result "0-1"]
[WhiteElo "2545"]
[BlackElo "2765"]
[TimeControl "180+1"]
[EndTime "8:19:14 PDT"]
[Termination "Abund won on time"]

1. e4 {[%clk 0:03:00.9]} 1... c6 {[%clk 0:03:00]} 2. d4 {[%clk 0:03:00.8]} 2...
d5 {[%clk 0:03:00.9]} 3. Nc3 {[%clk 0:03:01]} 3... dxe4 {[%clk 0:03:00.9]} 4. f3
{[%clk 0:03:01.4]} 4... exf3 {[%clk 0:02:57.3]} 5. Nxf3 {[%clk 0:03:02.3]} 5...
Nf6 {[%clk 0:02:54.7]} 6. Bd3 {[%clk 0:03:01.8]} 6... Bg4 {[%clk 0:02:50.3]} 7.
Bf4 {[%clk 0:03:01]} 7... e6 {[%clk 0:02:49.1]} 8. h3 {[%clk 0:03:00.1]} 8...
Bh5 {[%clk 0:02:44.8]} 9. Qe2 {[%clk 0:02:55.1]} 9... Bd6 {[%clk 0:02:43.1]} 10.
Be5 {[%clk 0:02:44.8]} 10... Bxe5 {[%clk 0:02:34.5]} 11. dxe5 {[%clk 0:02:44.2]}
11... Nd5 {[%clk 0:02:34.3]} 12. Ne4 {[%clk 0:02:38]} 12... Nf4 {[%clk
0:02:23.5]} 13. Qd2 {[%clk 0:01:28.1]} 13... Nxd3+ {[%clk 0:02:22.3]} 14. cxd3
{[%clk 0:01:27.1]} 14... O-O {[%clk 0:02:20.9]} 15. O-O {[%clk 0:01:22.3]} 15...
Nd7 {[%clk 0:02:18.2]} 16. d4 {[%clk 0:01:16.3]} 16... c5 {[%clk 0:01:39.5]} 17.
Nd6 {[%clk 0:00:58.4]} 17... Qb6 {[%clk 0:01:17.7]} 18. Nc4 {[%clk 0:00:40.4]}
18... Qa6 {[%clk 0:01:14.7]} 19. b3 {[%clk 0:00:30.1]} 19... Rad8 {[%clk
0:01:07.2]} 20. Qg5 {[%clk 0:00:15.5]} 20... Bg6 {[%clk 0:00:52.8]} 21. h4
{[%clk 0:00:10.9]} 21... h6 {[%clk 0:00:49.9]} 22. Qg4 {[%clk 0:00:06.4]} 22...
cxd4 {[%clk 0:00:39.3]} 23. Nxd4 {[%clk 0:00:05.2]} 23... b5 {[%clk 0:00:38.9]}
24. Ne3 {[%clk 0:00:01.4]} 24... Nxe5 {[%clk 0:00:39.3]} 25. Qf4 {[%clk
0:00:01.8]} 25... Nd3 {[%clk 0:00:39.9]} 26. Qg4 {[%clk 0:00:01.5]} 26... h5
{[%clk 0:00:40.1]} 0-1

[Event "Early-Titled-Tuesday-Blitz-May-07-2024"]
[Site "Chess.com"]
[Date "2024.05.07"]
[Round "2"]
[White "GMBenjaminBok"]
[Black "ahmedkandiliii"]
[Result "1-0"]
[WhiteElo "3046"]
[BlackElo "2641"]
[TimeControl "180+1"]
[EndTime "8:19:16 PDT"]
[Termination "GMBenjaminBok won on time"]

1. d4 {[%clk 0:02:58.5]} 1... Nf6 {[%clk 0:02:59.6]} 2. c4 {[%clk 0:02:57.6]}
2... e6 {[%clk 0:02:59]} 3. Nc3 {[%clk 0:02:57.6]} 3... Bb4 {[%clk 0:02:58.6]}
4. Qc2 {[%clk 0:02:57.5]} 4... d5 {[%clk 0:02:55.2]} 5. a3 {[%clk 0:02:57.5]}
5... Be7 {[%clk 0:02:49.2]} 6. Nf3 {[%clk 0:02:56.9]} 6... O-O {[%clk
0:02:48.8]} 7. Bf4 {[%clk 0:02:57.2]} 7... b6 {[%clk 0:02:40.3]} 8. cxd5 {[%clk
0:02:56.5]} 8... exd5 {[%clk 0:02:36.2]} 9. Nb5 {[%clk 0:02:32.1]} 9... Na6
{[%clk 0:02:23.4]} 10. Nxc7 {[%clk 0:02:26.9]} 10... Nxc7 {[%clk 0:02:19.1]} 11.
Bxc7 {[%clk 0:02:23.2]} 11... Qd7 {[%clk 0:02:17.6]} 12. e3 {[%clk 0:02:19.3]}
12... Bb7 {[%clk 0:02:12.3]} 13. Bg3 {[%clk 0:02:11.5]} 13... Rac8 {[%clk
0:02:11.5]} 14. Qb3 {[%clk 0:02:07.4]} 14... Bc6 {[%clk 0:01:49.2]} 15. Ba6
{[%clk 0:02:01.8]} 15... Ba4 {[%clk 0:01:40.4]} 16. Qd3 {[%clk 0:01:49.8]} 16...
Ne4 {[%clk 0:01:21.6]} 17. Ne5 {[%clk 0:01:41.1]} 17... Qe6 {[%clk 0:00:27.7]}
18. Bxc8 {[%clk 0:01:36.2]} 18... Rxc8 {[%clk 0:00:26.5]} 19. O-O {[%clk
0:01:33.6]} 19... f6 {[%clk 0:00:20.8]} 20. Qa6 {[%clk 0:01:30.8]} 20... Bb3
{[%clk 0:00:15.1]} 21. Qb5 {[%clk 0:00:51.6]} 21... Bc2 {[%clk 0:00:04.3]} 22.
Rfc1 {[%clk 0:00:43.2]} 22... fxe5 {[%clk 0:00:04.3]} 23. Rxc2 {[%clk
0:00:43.8]} 23... Nd6 {[%clk 0:00:00.8]} 24. Rxc8+ {[%clk 0:00:42.9]} 24... Qxc8
{[%clk 0:00:01.7]} 25. Qxd5+ {[%clk 0:00:42.9]} 25... Kh8 {[%clk 0:00:01.5]} 26.
Bxe5 {[%clk 0:00:42.6]} 26... Nc4 {[%clk 0:00:01.7]} 27. Rc1 {[%clk 0:00:40.1]}
27... b5 {[%clk 0:00:01.4]} 28. Qxb5 {[%clk 0:00:39.9]} 1-0

[Event "Early-Titled-Tuesday-Blitz-May-07-2024"]
[Site "Chess.com"]
[Date "2024.05.07"]
[Round "2"]
[White "Tonychess32"]
[Black "BestStelker"]
[Result "1-0"]
[WhiteElo "2489"]
[BlackElo "2715"]
[TimeControl "180+1"]
[EndTime "8:19:16 PDT"]
[Termination "Tonychess32 won on time"]

1. e4 {[%clk 0:03:00.9]} 1... e6 {[%clk 0:02:58.6]} 2. d4 {[%clk 0:03:00.7]}
2... d5 {[%clk 0:02:59.5]} 3. e5 {[%clk 0:03:01]} 3... c5 {[%clk 0:02:59.8]} 4.
c3 {[%clk 0:03:01.5]} 4... Nc6 {[%clk 0:03:00.5]} 5. Nf3 {[%clk 0:03:01.9]} 5...
Qb6 {[%clk 0:03:01.2]} 6. Bd3 {[%clk 0:03:01.5]} 6... cxd4 {[%clk 0:03:01.7]} 7.
O-O {[%clk 0:03:00.7]} 7... Bd7 {[%clk 0:03:02.4]} 8. a3 {[%clk 0:03:01]} 8...
Rc8 {[%clk 0:03:02.1]} 9. b4 {[%clk 0:03:01.2]} 9... dxc3 {[%clk 0:02:58.7]} 10.
Nxc3 {[%clk 0:03:02.1]} 10... Nxb4 {[%clk 0:02:48.4]} 11. axb4 {[%clk
0:02:54.3]} 11... Rxc3 {[%clk 0:02:47.9]} 12. Bb2 {[%clk 0:02:47.7]} 12... Rc8
{[%clk 0:02:37]} 13. Bd4 {[%clk 0:02:47.1]} 13... Qc7 {[%clk 0:02:27.7]} 14.
Rxa7 {[%clk 0:02:40.9]} 14... Ne7 {[%clk 0:02:23.5]} 15. b5 {[%clk 0:02:22.5]}
15... Nf5 {[%clk 0:02:11.9]} 16. b6 {[%clk 0:02:06.5]} 16... Qb8 {[%clk
0:01:52.4]} 17. Bxf5 {[%clk 0:01:30.7]} 17... exf5 {[%clk 0:01:53.3]} 18. e6
{[%clk 0:01:25.4]} 18... fxe6 {[%clk 0:01:44.2]} 19. Ne5 {[%clk 0:01:25.1]}
19... h5 {[%clk 0:00:38.4]} 20. Re1 {[%clk 0:01:03.6]} 20... Bd6 {[%clk
0:00:26.8]} 21. Qd2 {[%clk 0:01:02]} 21... Be7 {[%clk 0:00:10.8]} 22. Ng6 {[%clk
0:00:49.3]} 22... Qd6 {[%clk 0:00:01.6]} 23. Rxb7 {[%clk 0:00:40.5]} 23... Rh6
{[%clk 0:00:01.2]} 24. Ne5 {[%clk 0:00:37.4]} 24... Bb5 {[%clk 0:00:00.7]} 25.
Rc1 {[%clk 0:00:31.9]} 25... Qb4 {[%clk 0:00:01.6]} 26. Rxc8+ {[%clk 0:00:31.3]}
1-0

[Event "Early-Titled-Tuesday-Blitz-May-07-2024"]
[Site "Chess.com"]
[Date "2024.05.07"]
[Round "2"]
[White "IamSchrodingersCat"]
[Black "FairChess_on_YouTube"]
[Result "0-1"]
[WhiteElo "2649"]
[BlackElo "3078"]
[TimeControl "180+1"]
[EndTime "8:19:17 PDT"]
[Termination "FairChess_on_YouTube won by resignation"]

1. e4 {[%clk 0:03:00.9]} 1... c5 {[%clk 0:02:57]} 2. Nf3 {[%clk 0:03:00.9]} 2...
e6 {[%clk 0:02:57.1]} 3. d3 {[%clk 0:03:01.1]} 3... Nc6 {[%clk 0:02:56.1]} 4.
Nbd2 {[%clk 0:03:01.4]} 4... d5 {[%clk 0:02:54]} 5. g3 {[%clk 0:03:01.7]} 5...
Nf6 {[%clk 0:02:54]} 6. Bg2 {[%clk 0:03:01.6]} 6... Be7 {[%clk 0:02:54.6]} 7.
O-O {[%clk 0:03:01.8]} 7... O-O {[%clk 0:02:54.8]} 8. e5 {[%clk 0:03:02.4]} 8...
Nd7 {[%clk 0:02:54.3]} 9. Re1 {[%clk 0:03:03.3]} 9... b5 {[%clk 0:02:46.3]} 10.
Nf1 {[%clk 0:03:03.3]} 10... b4 {[%clk 0:02:44.8]} 11. h4 {[%clk 0:03:02.7]}
11... a5 {[%clk 0:02:44]} 12. N1h2 {[%clk 0:02:49.9]} 12... Ba6 {[%clk
0:02:42.2]} 13. c3 {[%clk 0:02:34.9]} 13... a4 {[%clk 0:02:29.2]} 14. a3 {[%clk
0:01:55.5]} 14... bxc3 {[%clk 0:02:19.6]} 15. bxc3 {[%clk 0:01:55.2]} 15... Rb8
{[%clk 0:02:06.2]} 16. Qxa4 {[%clk 0:01:22.8]} 16... Bxd3 {[%clk 0:02:04]} 17.
Bf4 {[%clk 0:01:16.7]} 17... Qa5 {[%clk 0:01:35.6]} 18. Qd1 {[%clk 0:01:07.3]}
18... Qxc3 {[%clk 0:01:30.8]} 19. Rc1 {[%clk 0:00:27.5]} 19... Qxa3 {[%clk
0:01:28.3]} 20. Re3 {[%clk 0:00:27.4]} 20... Nb4 {[%clk 0:01:17.4]} 21. Ne1
{[%clk 0:00:19.1]} 21... c4 {[%clk 0:01:16.4]} 22. Bf1 {[%clk 0:00:06.9]} 22...
Nc5 {[%clk 0:01:15]} 23. Ra1 {[%clk 0:00:04.4]} 23... Qb3 {[%clk 0:01:13.5]} 24.
Nxd3 {[%clk 0:00:05]} 24... Qxd1 {[%clk 0:01:12.1]} 25. Rxd1 {[%clk 0:00:04.4]}
25... Nbxd3 {[%clk 0:01:11.7]} 26. Nf3 {[%clk 0:00:04.4]} 26... Rb2 {[%clk
0:01:09.8]} 27. Re2 {[%clk 0:00:04.5]} 27... Rfb8 {[%clk 0:01:08]} 28. Nd4
{[%clk 0:00:04.7]} 28... Rxe2 {[%clk 0:01:00.7]} 29. Bxe2 {[%clk 0:00:05.6]}
29... Nxf4 {[%clk 0:00:56.8]} 30. gxf4 {[%clk 0:00:04.4]} 30... Bxh4 {[%clk
0:00:57.4]} 31. Kf1 {[%clk 0:00:02.1]} 31... g6 {[%clk 0:00:56.2]} 32. Ra1
{[%clk 0:00:02.6]} 32... Ne4 {[%clk 0:00:53]} 33. Ra7 {[%clk 0:00:02.5]} 33...
Bxf2 {[%clk 0:00:52.4]} 34. Nc6 {[%clk 0:00:02.9]} 34... Rb1+ {[%clk 0:00:51.7]}
0-1

[Event "Early-Titled-Tuesday-Blitz-May-07-2024"]
[Site "Chess.com"]
[Date "2024.05.07"]
[Round "2"]
[White "nochewycandy"]
[Black "chess_blitz00"]
[Result "1-0"]
[WhiteElo "2814"]
[BlackElo "2557"]
[TimeControl "180+1"]
[EndTime "8:19:18 PDT"]
[Termination "nochewycandy won by checkmate"]

1. Nf3 {[%clk 0:03:00.9]} 1... d6 {[%clk 0:02:59.7]} 2. d4 {[%clk 0:03:00.4]}
2... Nf6 {[%clk 0:02:58.9]} 3. g3 {[%clk 0:03:00.4]} 3... c6 {[%clk 0:02:58.6]}
4. Bg2 {[%clk 0:03:00.8]} 4... Nbd7 {[%clk 0:02:58.7]} 5. O-O {[%clk 0:03:01.5]}
5... e5 {[%clk 0:02:59.3]} 6. c4 {[%clk 0:02:57.6]} 6... Be7 {[%clk 0:02:57.3]}
7. Nc3 {[%clk 0:02:57.5]} 7... O-O {[%clk 0:02:57.9]} 8. e4 {[%clk 0:02:56.6]}
8... Re8 {[%clk 0:02:55.3]} 9. Re1 {[%clk 0:02:48.6]} 9... Bf8 {[%clk
0:02:54.6]} 10. d5 {[%clk 0:02:36.1]} 10... Nc5 {[%clk 0:02:53.4]} 11. b4 {[%clk
0:02:32.3]} 11... Na6 {[%clk 0:02:53.6]} 12. a3 {[%clk 0:02:32.2]} 12... c5
{[%clk 0:02:45.8]} 13. Rb1 {[%clk 0:02:30.8]} 13... b6 {[%clk 0:02:43.5]} 14. h3
{[%clk 0:02:28.6]} 14... Bd7 {[%clk 0:02:42.9]} 15. Be3 {[%clk 0:02:28.7]} 15...
h6 {[%clk 0:02:37.9]} 16. Qd2 {[%clk 0:02:28]} 16... Nh7 {[%clk 0:02:37.7]} 17.
Rec1 {[%clk 0:02:21.7]} 17... Be7 {[%clk 0:02:31.9]} 18. Kh2 {[%clk 0:02:21.6]}
18... Rf8 {[%clk 0:02:31.5]} 19. Qe2 {[%clk 0:02:04.7]} 19... Ng5 {[%clk
0:02:26.9]} 20. Nd2 {[%clk 0:01:59.8]} 20... Qc8 {[%clk 0:02:19.3]} 21. h4
{[%clk 0:01:58.5]} 21... Nh7 {[%clk 0:02:18.1]} 22. f4 {[%clk 0:01:41]} 22...
exf4 {[%clk 0:01:54.3]} 23. Bxf4 {[%clk 0:01:41.9]} 23... Nf6 {[%clk 0:01:50]}
24. Rf1 {[%clk 0:01:37.6]} 24... Ng4+ {[%clk 0:01:47.1]} 25. Kg1 {[%clk
0:01:38.2]} 25... Bf6 {[%clk 0:01:46.7]} 26. Nb5 {[%clk 0:01:31.3]} 26... Bxb5
{[%clk 0:01:04.4]} 27. cxb5 {[%clk 0:01:31.4]} 27... Nc7 {[%clk 0:00:59.3]} 28.
Bxd6 {[%clk 0:01:26.1]} 28... Bd4+ {[%clk 0:00:52.2]} 29. Kh1 {[%clk 0:01:26.2]}
29... Ne3 {[%clk 0:00:26.7]} 30. Bxf8 {[%clk 0:01:25.9]} 30... Nxf1 {[%clk
0:00:26.8]} 31. Rxf1 {[%clk 0:01:26.8]} 31... Qxf8 {[%clk 0:00:26.7]} 32. e5
{[%clk 0:01:25.7]} 32... Qe8 {[%clk 0:00:17.4]} 33. d6 {[%clk 0:01:23.1]} 33...
Nxb5 {[%clk 0:00:08.1]} 34. Bxa8 {[%clk 0:01:17.3]} 34... Qxa8+ {[%clk 0:00:09]}
35. Qf3 {[%clk 0:01:12.8]} 35... Qe8 {[%clk 0:00:08.6]} 36. Nc4 {[%clk
0:01:04.3]} 36... Bxe5 {[%clk 0:00:03.1]} 37. d7 {[%clk 0:01:01.8]} 37... Qxd7
{[%clk 0:00:02.2]} 38. Nxe5 {[%clk 0:01:02.4]} 38... Qh3+ {[%clk 0:00:02.2]} 39.
Kg1 {[%clk 0:01:01.7]} 39... Nd4 {[%clk 0:00:02.2]} 40. Qxf7+ {[%clk 0:01:01.5]}
40... Kh7 {[%clk 0:00:02]} 41. Qg6+ {[%clk 0:01:00.4]} 41... Kg8 {[%clk
0:00:02.6]} 42. Rf8+ {[%clk 0:01:01]} 42... Kxf8 {[%clk 0:00:02.9]} 43. Qf7#
{[%clk 0:01:01.9]} 1-0

[Event "Early-Titled-Tuesday-Blitz-May-07-2024"]
[Site "Chess.com"]
[Date "2024.05.07"]
[Round "2"]
[White "djano"]
[Black "talaicito"]
[Result "1-0"]
[WhiteElo "2584"]
[BlackElo "2373"]
[TimeControl "180+1"]
[EndTime "8:19:19 PDT"]
[Termination "djano won on time"]

1. e4 {[%clk 0:03:00.9]} 1... c5 {[%clk 0:02:59.2]} 2. Nc3 {[%clk 0:03:00]} 2...
Nc6 {[%clk 0:02:58.5]} 3. f4 {[%clk 0:03:00.2]} 3... g6 {[%clk 0:02:58]} 4. Nf3
{[%clk 0:02:59.9]} 4... Bg7 {[%clk 0:02:58.6]} 5. a4 {[%clk 0:03:00.1]} 5... d6
{[%clk 0:02:56]} 6. Bb5 {[%clk 0:02:58.8]} 6... Bd7 {[%clk 0:02:56]} 7. O-O
{[%clk 0:02:58.7]} 7... Nd4 {[%clk 0:02:50]} 8. d3 {[%clk 0:02:53.9]} 8... a6
{[%clk 0:02:48.9]} 9. Bc4 {[%clk 0:02:50.9]} 9... e6 {[%clk 0:02:32.3]} 10. f5
{[%clk 0:02:51.1]} 10... Nf6 {[%clk 0:02:28.1]} 11. fxe6 {[%clk 0:02:44]} 11...
fxe6 {[%clk 0:02:21.2]} 12. e5 {[%clk 0:02:38.1]} 12... dxe5 {[%clk 0:01:48.3]}
13. Nxe5 {[%clk 0:02:23.7]} 13... O-O {[%clk 0:01:48.7]} 14. Bg5 {[%clk
0:02:22.4]} 14... Qc7 {[%clk 0:01:39.4]} 15. Nxd7 {[%clk 0:02:16]} 15... Qxd7
{[%clk 0:01:40.3]} 16. a5 {[%clk 0:02:12.4]} 16... Nd5 {[%clk 0:01:27.5]} 17.
Ne4 {[%clk 0:02:05.1]} 17... Rxf1+ {[%clk 0:01:11.5]} 18. Kxf1 {[%clk 0:02:06]}
18... h6 {[%clk 0:00:58.1]} 19. Bd2 {[%clk 0:02:05.6]} 19... Rf8+ {[%clk
0:00:52.7]} 20. Kg1 {[%clk 0:02:05.9]} 20... Nf4 {[%clk 0:00:50.1]} 21. c3
{[%clk 0:01:44.5]} 21... Nc6 {[%clk 0:00:34.9]} 22. Be3 {[%clk 0:01:35.9]} 22...
Kh7 {[%clk 0:00:17.5]} 23. Nxc5 {[%clk 0:01:34.3]} 23... Qe7 {[%clk 0:00:11.3]}
24. Ne4 {[%clk 0:01:33]} 24... Ne5 {[%clk 0:00:10]} 25. Ng3 {[%clk 0:01:05.9]}
25... Qh4 {[%clk 0:00:03.6]} 26. Ra4 {[%clk 0:00:56.1]} 26... Ng4 {[%clk
0:00:03]} 27. Nf1 {[%clk 0:00:52.5]} 27... Nxg2 {[%clk 0:00:00.1]} 28. Bf4
{[%clk 0:00:32]} 1-0

[Event "Early-Titled-Tuesday-Blitz-May-07-2024"]
[Site "Chess.com"]
[Date "2024.05.07"]
[Round "2"]
[White "littlepinkyboy"]
[Black "atomicmate123"]
[Result "1-0"]
[WhiteElo "2662"]
[BlackElo "2384"]
[TimeControl "180+1"]
[EndTime "8:19:21 PDT"]
[Termination "littlepinkyboy won by checkmate"]

1. e4 {[%clk 0:03:00.9]} 1... c5 {[%clk 0:02:59.8]} 2. Nf3 {[%clk 0:03:00]} 2...
d6 {[%clk 0:03:00]} 3. d4 {[%clk 0:02:59.9]} 3... cxd4 {[%clk 0:03:00.9]} 4.
Nxd4 {[%clk 0:03:00.3]} 4... Nf6 {[%clk 0:03:01.7]} 5. Nc3 {[%clk 0:02:59.7]}
5... Nc6 {[%clk 0:03:02.4]} 6. Bg5 {[%clk 0:02:57.3]} 6... e6 {[%clk 0:03:01.9]}
7. Qd2 {[%clk 0:02:57.6]} 7... a6 {[%clk 0:03:02.4]} 8. O-O-O {[%clk 0:02:56.6]}
8... Bd7 {[%clk 0:03:02.1]} 9. f3 {[%clk 0:02:50.2]} 9... Nxd4 {[%clk
0:03:01.4]} 10. Qxd4 {[%clk 0:02:38.4]} 10... Be7 {[%clk 0:03:01.6]} 11. Be3
{[%clk 0:02:34.5]} 11... h5 {[%clk 0:02:59.1]} 12. e5 {[%clk 0:02:21.4]} 12...
dxe5 {[%clk 0:02:44.6]} 13. Qxe5 {[%clk 0:02:22.3]} 13... b5 {[%clk 0:02:19.3]}
14. g4 {[%clk 0:01:49.7]} 14... hxg4 {[%clk 0:02:12.7]} 15. fxg4 {[%clk
0:01:50.6]} 15... Nxg4 {[%clk 0:02:02.7]} 16. Qxg7 {[%clk 0:01:45.6]} 16... Nxe3
{[%clk 0:01:31.9]} 17. Qxh8+ {[%clk 0:01:34.1]} 17... Bf8 {[%clk 0:01:32.2]} 18.
Rd2 {[%clk 0:01:06.2]} 18... Qg5 {[%clk 0:01:25.4]} 19. Ne4 {[%clk 0:01:01]}
19... Qg7 {[%clk 0:00:35.4]} 20. Nf6+ {[%clk 0:00:33.4]} 20... Ke7 {[%clk
0:00:34]} 21. Qh4 {[%clk 0:00:16.8]} 21... Nf5 {[%clk 0:00:21.6]} 22. Rxd7#
{[%clk 0:00:03.5]} 1-0

[Event "Early-Titled-Tuesday-Blitz-May-07-2024"]
[Site "Chess.com"]
[Date "2024.05.07"]
[Round "2"]
[White "Defend1r"]
[Black "Nitzan_Steinberg"]
[Result "0-1"]
[WhiteElo "2617"]
[BlackElo "2925"]
[TimeControl "180+1"]
[EndTime "8:19:22 PDT"]
[Termination "Nitzan_Steinberg won by checkmate"]

1. e4 {[%clk 0:03:00]} 1... c5 {[%clk 0:03:00.2]} 2. Nf3 {[%clk 0:02:59.9]} 2...
e6 {[%clk 0:02:59.2]} 3. Bd3 {[%clk 0:02:57.4]} 3... Nc6 {[%clk 0:02:56.9]} 4.
O-O {[%clk 0:02:54.9]} 4... g5 {[%clk 0:02:57.1]} 5. c3 {[%clk 0:02:47.1]} 5...
g4 {[%clk 0:02:57.3]} 6. Ne1 {[%clk 0:02:47.2]} 6... h5 {[%clk 0:02:54.9]} 7.
Be2 {[%clk 0:02:44.9]} 7... d5 {[%clk 0:02:50.8]} 8. exd5 {[%clk 0:02:44.1]}
8... Qxd5 {[%clk 0:02:50.7]} 9. d3 {[%clk 0:02:41.4]} 9... Nf6 {[%clk
0:02:38.9]} 10. Bf4 {[%clk 0:02:12.8]} 10... Qf5 {[%clk 0:02:31.7]} 11. Qc1
{[%clk 0:02:05.5]} 11... Nd5 {[%clk 0:02:20.5]} 12. Bg5 {[%clk 0:01:29.6]} 12...
Bd6 {[%clk 0:02:12.7]} 13. Bh4 {[%clk 0:01:25.3]} 13... Nf4 {[%clk 0:01:53.2]}
14. Bd1 {[%clk 0:01:13]} 14... Ne5 {[%clk 0:01:37.6]} 15. d4 {[%clk 0:01:07.1]}
15... Neg6 {[%clk 0:01:30.9]} 16. dxc5 {[%clk 0:00:53.3]} 16... Bxc5 {[%clk
0:01:17.4]} 17. Bg3 {[%clk 0:00:51.6]} 17... h4 {[%clk 0:01:14.7]} 18. Bxf4
{[%clk 0:00:51.6]} 18... Nxf4 {[%clk 0:01:15.3]} 19. Qd2 {[%clk 0:00:44.8]}
19... Bd7 {[%clk 0:00:57.4]} 20. Bc2 {[%clk 0:00:44.2]} 20... Qg5 {[%clk
0:00:54.4]} 21. Nd3 {[%clk 0:00:35.4]} 21... Bd6 {[%clk 0:00:54.5]} 22. Nxf4
{[%clk 0:00:25.9]} 22... Bxf4 {[%clk 0:00:54.2]} 23. Qe2 {[%clk 0:00:26.5]}
23... g3 {[%clk 0:00:46.7]} 24. fxg3 {[%clk 0:00:21.4]} 24... hxg3 {[%clk
0:00:42.8]} 25. h3 {[%clk 0:00:21.7]} 25... Be3+ {[%clk 0:00:37.1]} 26. Kh1
{[%clk 0:00:21.4]} 26... Rxh3+ {[%clk 0:00:34.9]} 27. gxh3 {[%clk 0:00:21.2]}
27... Bc6+ {[%clk 0:00:35.4]} 28. Rf3 {[%clk 0:00:17.2]} 28... g2+ {[%clk
0:00:35.9]} 29. Qxg2 {[%clk 0:00:17.2]} 29... Bxf3 {[%clk 0:00:36.3]} 30. Ba4+
{[%clk 0:00:15.6]} 30... Kf8 {[%clk 0:00:32.3]} 31. Qxf3 {[%clk 0:00:10.9]}
31... Qg1# {[%clk 0:00:32.3]} 0-1

[Event "Early-Titled-Tuesday-Blitz-May-07-2024"]
[Site "Chess.com"]
[Date "2024.05.07"]
[Round "2"]
[White "MokshAD1603"]
[Black "stollenmonster"]
[Result "0-1"]
[WhiteElo "2616"]
[BlackElo "2921"]
[TimeControl "180+1"]
[EndTime "8:19:23 PDT"]
[Termination "stollenmonster won by resignation"]

1. e4 {[%clk 0:03:00.9]} 1... c5 {[%clk 0:02:59.5]} 2. Nf3 {[%clk 0:02:54.7]}
2... Nf6 {[%clk 0:02:59.3]} 3. e5 {[%clk 0:02:54.6]} 3... Nd5 {[%clk 0:02:58.9]}
4. Nc3 {[%clk 0:02:55.3]} 4... e6 {[%clk 0:02:59]} 5. g3 {[%clk 0:02:41]} 5...
Nc6 {[%clk 0:02:58.4]} 6. Bg2 {[%clk 0:02:41.5]} 6... d6 {[%clk 0:02:57.9]} 7.
exd6 {[%clk 0:02:40.6]} 7... Bxd6 {[%clk 0:02:58.8]} 8. O-O {[%clk 0:02:38.3]}
8... O-O {[%clk 0:02:58.6]} 9. Nxd5 {[%clk 0:02:36.3]} 9... exd5 {[%clk
0:02:59.5]} 10. d4 {[%clk 0:02:36.8]} 10... c4 {[%clk 0:02:59.9]} 11. b3 {[%clk
0:02:30.9]} 11... c3 {[%clk 0:02:59.7]} 12. Qd3 {[%clk 0:02:27.1]} 12... Nb4
{[%clk 0:02:59.8]} 13. Qxc3 {[%clk 0:02:19.7]} 13... Bf5 {[%clk 0:03:00]} 14.
Bf4 {[%clk 0:01:50.1]} 14... Rc8 {[%clk 0:02:58.2]} 15. Qd2 {[%clk 0:01:42]}
15... Rxc2 {[%clk 0:02:56.4]} 16. Qd1 {[%clk 0:01:42.5]} 16... Bxf4 {[%clk
0:02:53.9]} 17. gxf4 {[%clk 0:01:43.4]} 17... Rc6 {[%clk 0:02:46.3]} 18. Ne5
{[%clk 0:01:41.8]} 18... Rh6 {[%clk 0:02:46.8]} 19. Qf3 {[%clk 0:01:40.5]} 19...
f6 {[%clk 0:02:34.4]} 20. Ng4 {[%clk 0:01:38.7]} 20... Rg6 {[%clk 0:02:33.9]}
21. Ne3 {[%clk 0:01:38.8]} 21... Be4 {[%clk 0:02:34.1]} 22. Qh3 {[%clk
0:01:39.5]} 22... Nc2 {[%clk 0:02:30.7]} 23. f5 {[%clk 0:01:14.6]} 23... Rg5
{[%clk 0:02:29.4]} 24. f4 {[%clk 0:01:11.8]} 24... Rxg2+ {[%clk 0:02:30]} 25.
Nxg2 {[%clk 0:01:10.5]} 25... Nxa1 {[%clk 0:02:30.7]} 26. Rxa1 {[%clk
0:01:11.3]} 26... Qb6 {[%clk 0:02:30.5]} 27. Rd1 {[%clk 0:01:09.2]} 27... Rc8
{[%clk 0:02:28.9]} 28. Ne3 {[%clk 0:01:09.5]} 28... Rc3 {[%clk 0:02:21]} 29. Qh5
{[%clk 0:00:56.9]} 29... Qb5 {[%clk 0:01:56.1]} 30. Re1 {[%clk 0:00:45.6]} 30...
Rc8 {[%clk 0:01:35.9]} 31. Qe2 {[%clk 0:00:44.5]} 31... Qb4 {[%clk 0:01:33.8]}
32. Rd1 {[%clk 0:00:38.5]} 32... a5 {[%clk 0:01:25.5]} 33. Qd2 {[%clk
0:00:38.8]} 33... Qb6 {[%clk 0:01:19.1]} 34. Rc1 {[%clk 0:00:37.4]} 34... Re8
{[%clk 0:01:16.8]} 35. Qc3 {[%clk 0:00:36.4]} 35... Qa6 {[%clk 0:01:04.1]} 36.
Kf2 {[%clk 0:00:35.6]} 36... Qd6 {[%clk 0:01:01.4]} 37. Kg3 {[%clk 0:00:34.3]}
37... g5 {[%clk 0:00:47.2]} 38. fxg6 {[%clk 0:00:33.1]} 38... Bxg6 {[%clk
0:00:47.6]} 39. Rf1 {[%clk 0:00:24.5]} 39... Kh8 {[%clk 0:00:44.4]} 40. Qc5
{[%clk 0:00:23.7]} 40... Rxe3+ {[%clk 0:00:41.9]} 0-1